bitfinex/quotes_SOLUSD_20241005
["timestamp","ask_amount","ask_price","bid_price","bid_amount"]
[1728097417410,20.0,142.26,142.16,15.7532]
[1728097417607,7.0323,142.2,142.16,15.7532]
[1728097417813,20.0,142.24,142.16,15.7532]
[1728097418011,7.0313,142.22,142.16,22.7874]
[1728097418333,7.0318,142.21,142.16,15.7532]
[1728097419324,7.0318,142.21,142.16,22.7875]
[1728097419711,20.0,142.24,142.17,23.776884]
[1728097419924,7.0313,142.23,142.18,7.0332]
[1728097420131,17.5708,142.29,142.19,23.776884]
[1728097420313,7.0293,142.26,142.2,21.60234561]
[1728097420645,7.0293,142.26,142.21,16.5143]
[1728097420824,7.0287,142.28,142.22,13.5835]
[1728097421030,7.0287,142.28,142.23,23.776884]
[1728097421215,17.5662,142.32,142.22,6.5523]
[1728097421216,7.0299,142.25,142.22,6.5523]
[1728097421403,7.0303,142.24,142.22,6.5523]
[1728097421606,7.0299,142.25,142.22,6.5523]
[1728097421821,7.0294,142.26,142.22,6.5523]
[1728097423538,22.6975,142.35,142.23,23.776884]
[1728097423827,7.0279,142.29,142.23,30.807284]
[1728097424422,7.0279,142.29,142.25,23.776884]
[1728097425329,7.0279,142.29,142.24,23.776884]
[1728097425638,7.0279,142.29,142.24,21.85090553]
[1728097426133,7.0275,142.3,142.24,7.0298]
[1728097426313,6.93663,142.3,142.25,23.544]
[1728097426514,7.027,142.31,142.25,23.544]
[1728097427136,7.0264,142.32,142.26,7.28008]
[1728097427325,7.0275,142.3,142.25,23.5441]
[1728097427643,7.0268,142.32,142.26,31.056964]
[1728097428512,7.0268,142.32,142.28,23.776884]
[1728097429918,7.0259,142.33,142.28,23.776884]
[1728097431429,7.0259,142.33,142.29,6.0897]
[1728097432124,7.0259,142.33,142.3,23.776884]
[1728097432442,7.0255,142.34,142.3,23.776884]
[1728097435536,7.0255,142.34,142.31,16.226]
[1728097435717,7.0249,142.36,142.31,23.2527]
[1728097435926,20.0,142.38,142.31,16.226]
[1728097436124,20.0,142.38,142.32,23.776884]
[1728097436623,7.0248,142.36,142.32,23.776884]
[1728097437320,20.0,142.41,142.32,23.776884]
[1728097437640,7.0245,142.36,142.32,23.776884]
[1728097438939,7.0235,142.38,142.33,7.0258]
[1728097439121,20.0,142.41,142.34,25.1785654]
[1728097439447,50.0,142.53,142.32,0.12549]
[1728097439448,20.0,142.51,142.39,23.776884]
[1728097439649,6.0286,142.55,142.39,23.776884]
[1728097439834,0.8501506,142.5,142.39,23.776884]
[1728097440044,2.60512744,142.5,142.42,23.776884]
[1728097440352,7.0185,142.48,142.43,6.6229]
[1728097440560,7.018,142.49,142.44,23.776884]
[1728097440741,7.0187,142.48,142.44,23.776884]
[1728097441754,20.0,142.49,142.44,30.796984]
[1728097441929,7.8678506,142.5,142.44,30.796984]
[1728097442129,7.8678506,142.5,142.45,0.25098]
[1728097442436,7.8678506,142.5,142.46,23.776884]
[1728097442851,0.8501506,142.5,142.46,23.776884]
[1728097443529,0.8501506,142.5,142.46,7.0194]
[1728097443860,0.8501506,142.5,142.47,25.17445433]
[1728097444058,0.8501506,142.5,142.48,15.33258]
[1728097444242,0.8501506,142.5,142.49,24.027864]
[1728097445631,0.8501506,142.5,142.49,23.776884]
[1728097446754,0.8501506,142.5,142.48,15.0816]
[1728097448060,0.8501506,142.5,142.44,15.0816]
[1728097448358,0.8501506,142.5,142.44,22.1019]
[1728097449232,7.0181,142.49,142.44,22.1019]
[1728097449672,7.0181,142.49,142.45,24.027864]
[1728097449852,0.8501506,142.5,142.45,24.027864]
[1728097450030,7.8676506,142.5,142.45,31.047764]
[1728097451066,0.8501506,142.5,142.44,15.0816]
[1728097451259,7.0191,142.47,142.44,15.0816]
[1728097451846,7.0195,142.46,142.44,15.0816]
[1728097453231,0.8501506,142.5,142.44,15.0816]
[1728097453434,7.0186,142.48,142.44,15.0816]
[1728097453631,7.0186,142.48,142.45,1.39859536]
[1728097454436,7.0186,142.48,142.44,15.0816]
[1728097455043,6.99269812,142.48,142.44,15.0816]
[1728097455759,7.8676506,142.5,142.45,30.796684]
[1728097456263,7.018,142.49,142.45,23.776884]
[1728097456433,7.0187,142.48,142.45,23.776884]
[1728097456857,0.8501506,142.5,142.45,23.776884]
[1728097457058,7.0181,142.49,142.45,23.776884]
[1728097459466,7.8677506,142.5,142.45,30.796784]
[1728097459962,0.8501506,142.5,142.47,30.795684]
[1728097460165,0.8501506,142.5,142.48,1.39750958]
[1728097460368,0.8501506,142.5,142.47,23.776884]
[1728097460570,0.8501506,142.5,142.49,7.018]
[1728097460784,0.8501506,142.5,142.49,23.776884]
[1728097461163,0.8501506,142.5,142.48,24.027864]
[1728097461550,0.28862888,142.5,142.48,31.046364]
[1728097462249,0.28862888,142.5,142.49,31.045864]
[1728097462449,0.28862888,142.5,142.49,32.44261711]
[1728097462744,0.28862888,142.5,142.49,31.045864]
[1728097465557,0.28862888,142.5,142.49,30.920374]
[1728097465880,0.28862888,142.5,142.49,30.794884]
[1728097467359,0.28862888,142.5,142.49,32.44278603]
[1728097467666,0.28862888,142.5,142.49,54.58071949]
[1728097468067,0.28862888,142.5,142.49,54.58038772]
[1728097468559,0.28862888,142.5,142.49,53.183964]
[1728097473783,7.0141,142.57,142.5,24.027864]
[1728097473949,7.0141,142.57,142.53,23.902374]
[1728097478177,7.0151,142.55,142.53,23.776884]
[1728097478391,20.0,142.59,142.49,15.6918]
[1728097480275,7.0166,142.52,142.5,23.776884]
[1728097480471,20.0,142.54,142.5,23.776884]
[1728097480775,7.0157,142.54,142.5,23.776884]
[1728097480967,17.5346,142.58,142.51,0.25098]
[1728097481172,7.0146,142.56,142.52,23.776884]
[1728097481371,17.5346,142.58,142.52,23.776884]
[1728097481675,7.0156,142.54,142.51,23.776884]
[1728097482500,17.5346,142.58,142.51,23.776884]
[1728097482501,7.0151,142.55,142.51,23.776884]
[1728097482786,7.0157,142.54,142.5,23.776884]
[1728097483272,20.0,142.57,142.51,14.57004561]
[1728097483481,7.0154,142.55,142.52,23.776884]
[1728097485076,20.0,142.57,142.52,23.776884]
[1728097485277,20.0,142.57,142.53,1.3963415]
[1728097485461,27.0142,142.57,142.53,1.3963415]
[1728097485661,7.0147,142.56,142.52,23.776884]
[1728097486768,7.0156,142.54,142.52,23.776884]
[1728097488068,7.016,142.53,142.49,14.57004561]
[1728097488579,20.0,142.56,142.49,14.57004561]
[1728097488782,7.016,142.53,142.49,21.58794561]
[1728097489684,7.016,142.53,142.5,23.776884]
[1728097490589,7.016,142.53,142.45,36.32824561]
[1728097490590,20.0,142.54,142.45,53.87754561]
[1728097490880,7.0187,142.48,142.43,7.0206]
[1728097491384,21.75400123,142.52,142.43,7.0206]
[1728097491587,21.75400123,142.52,142.42,17.5533]
[1728097491588,7.0196,142.46,142.42,17.5533]
[1728097491888,6.202,142.48,142.39,17.5572]
[1728097492089,7.0205,142.44,142.39,7.0229]
[1728097492272,20.0,142.47,142.39,14.57004561]
[1728097492673,7.0195,142.46,142.39,32.12724561]
[1728097492863,7.0195,142.46,142.4,7.0223]
[1728097493069,7.0195,142.46,142.42,0.25098]
[1728097493295,7.0195,142.46,142.42,24.027864]
[1728097495499,7.0195,142.46,142.42,23.902374]
[1728097495792,20.0,142.48,142.44,30.797284]
[1728097496287,22.9108,142.51,142.45,7.0199]
[1728097496468,15.8933,142.51,142.46,23.776884]
[1728097497391,7.018,142.49,142.46,23.776884]
[1728097497591,7.018,142.49,142.45,23.776884]
[1728097497969,20.0,142.5,142.45,7.0198]
[1728097498175,27.0177,142.5,142.46,23.776884]
[1728097498376,27.0177,142.5,142.46,30.796284]
[1728097499291,20.0,142.51,142.47,7.0189]
[1728097499675,27.0171,142.51,142.46,30.796284]
[1728097501091,27.0171,142.51,142.47,0.25098]
[1728097501395,7.0156,142.54,142.51,23.776884]
[1728097501778,7.0165,142.52,142.48,24.027864]
[1728097501981,1.75385005,142.57,142.48,24.027864]
[1728097502186,7.0165,142.53,142.48,31.046264]
[1728097502496,7.0166,142.52,142.48,24.027864]
[1728097502877,7.0161,142.53,142.48,31.046264]
[1728097503289,7.0156,142.54,142.5,7.0175]
[1728097503479,7.0151,142.55,142.51,23.776884]
[1728097503673,29.2262322,142.61,142.5,24.027864]
[1728097503899,7.0145,142.56,142.52,23.776884]
[1728097504396,39.626,142.61,142.52,30.793384]
[1728097504397,7.0142,142.57,142.52,30.793384]
[1728097504982,7.0142,142.57,142.53,0.25098]
[1728097505387,7.0142,142.57,142.54,23.776884]
[1728097505676,22.0953,142.61,142.55,7.14039]
[1728097505883,7.0132,142.59,142.56,23.776884]
[1728097506275,7.0132,142.59,142.55,23.902374]
[1728097506488,6.202,142.61,142.55,23.902374]
[1728097507282,20.0,142.6,142.55,23.902374]
[1728097507479,20.0,142.6,142.55,23.776884]
[1728097507683,7.0141,142.57,142.54,23.776884]
[1728097507885,7.0131,142.59,142.54,30.792384]
[1728097508100,7.0116,142.62,142.57,23.776884]
[1728097508402,7.0112,142.63,142.59,23.776884]
[1728097508610,0.8501506,142.64,142.6,1.39436572]
[1728097508779,7.8607506,142.64,142.6,1.39436572]
[1728097509207,7.8607506,142.64,142.59,7.013]
[1728097509409,7.8607506,142.64,142.6,23.776884]
[1728097509905,7.0113,142.63,142.59,23.776884]
[1728097510408,0.8501506,142.64,142.6,7.26338]
[1728097510720,7.0131,142.59,142.54,24.5532]
[1728097510905,7.0136,142.58,142.54,17.5377]
[1728097511091,1.7525996,142.63,142.54,17.5377]
[1728097511291,7.0141,142.57,142.53,16.592]
[1728097511505,1.75352713,142.61,142.52,6.2907]
[1728097511683,6.6259,142.6,142.51,17.5425]
[1728097511881,21.75369276,142.59,142.51,17.5425]
[1728097512315,7.0141,142.57,142.51,17.5425]
[1728097512479,20.0,142.59,142.51,17.5425]
[1728097512686,7.0146,142.56,142.51,24.5595]
[1728097513400,7.014,142.58,142.52,7.0164]
[1728097513581,20.0,142.59,142.53,1.39630688]
[1728097513782,2.60351237,142.64,142.52,14.57004561]
[1728097514104,7.0122,142.61,142.53,24.027864]
[1728097514303,7.0122,142.61,142.56,24.027864]
[1728097514817,7.0126,142.6,142.56,24.027864]
[1728097516738,0.8501506,142.64,142.58,0.25098]
[1728097516884,0.8501506,142.64,142.58,24.027864]
[1728097517397,0.8501506,142.64,142.6,23.776884]
[1728097517589,0.8501506,142.64,142.58,24.027864]
[1728097518191,0.8501506,142.64,142.6,23.776884]
[1728097518512,7.0121,142.61,142.6,23.776884]
[1728097518687,7.0115,142.63,142.6,23.776884]
[1728097519207,2.60295842,142.64,142.6,23.776884]
[1728097519390,7.0116,142.62,142.6,23.776884]
[1728097519592,0.8501506,142.64,142.6,23.776884]
[1728097519795,7.0112,142.63,142.59,23.776884]
[1728097520509,7.0122,142.61,142.59,23.776884]
[1728097521309,0.8501506,142.64,142.59,23.776884]
[1728097521706,7.0111,142.63,142.59,23.776884]
[1728097521923,7.0116,142.62,142.59,23.776884]
[1728097522298,7.0116,142.62,142.58,23.902374]
[1728097522631,7.0116,142.62,142.38,611.62476416]
[1728097522632,7.0142,142.57,142.53,16.239]
[1728097522915,7.0145,142.56,142.53,30.0]
[1728097523121,1.75295342,142.61,142.52,17.5409]
[1728097523293,7.0141,142.57,142.52,24.5574]
[1728097523621,7.0137,142.58,142.53,7.016]
[1728097524004,7.0136,142.58,142.54,7.0154]
[1728097524201,7.0136,142.58,142.55,23.776884]
[1728097524413,7.0136,142.58,142.53,23.902374]
[1728097524722,7.0136,142.58,142.54,0.12549]
[1728097527192,20.0,142.61,142.55,23.902374]
[1728097527419,7.0126,142.6,142.55,30.917374]
[1728097528506,7.0126,142.6,142.57,23.776884]
[1728097528910,6.98902266,142.59,142.55,23.902374]
[1728097529819,7.0151,142.55,142.49,23.2569]
[1728097530026,7.0155,142.54,142.49,23.2569]
[1728097530212,7.0154,142.55,142.49,23.2569]
[1728097531125,7.0154,142.55,142.49,16.239]
[1728097531305,7.0154,142.55,142.5,8.41397645]
[1728097531725,7.0154,142.55,142.51,24.027864]
[1728097531927,7.014,142.58,142.53,23.776884]
[1728097532126,7.0131,142.59,142.55,23.776884]
[1728097532430,7.0131,142.59,142.56,1.39579568]
[1728097532912,7.0131,142.59,142.55,23.776884]
[1728097533114,7.0131,142.59,142.54,30.792284]
[1728097534220,7.0131,142.59,142.55,1.39548415]
[1728097534529,7.0131,142.59,142.54,30.792284]
[1728097534825,0.8501506,142.64,142.56,7.0143]
[1728097534826,27.0121,142.61,142.56,7.0143]
[1728097535127,7.0121,142.61,142.57,23.776884]
[1728097535723,7.0113,142.63,142.57,7.26458]
[1728097535908,7.0118,142.62,142.58,25.17152283]
[1728097536109,7.0118,142.62,142.58,23.776884]
[1728097536322,7.0112,142.63,142.58,23.776884]
[1728097536812,0.8501506,142.64,142.59,0.25098]
[1728097537017,7.8608506,142.64,142.59,25.42196892]
[1728097537232,7.8608506,142.64,142.59,24.027864]
[1728097537233,0.8501506,142.64,142.59,24.027864]
[1728097537520,0.8501506,142.64,142.61,31.039764]
[1728097537730,0.8501506,142.64,142.63,24.027864]
[1728097537907,0.8501506,142.64,142.63,25.42059178]
[1728097538121,0.8501506,142.64,142.63,32.43169178]
[1728097538512,0.8501506,142.64,142.63,31.038964]
[1728097541936,0.8501506,142.64,142.62,22.8404]
[1728097542140,0.8501506,142.64,142.61,20.0]
[1728097542949,0.8501506,142.64,142.6,17.5307]
[1728097543709,7.8608506,142.64,142.6,17.5307]
[1728097544209,7.8608506,142.64,142.61,0.12549]
[1728097544644,7.8608506,142.64,142.6,17.5307]
[1728097544817,7.8608506,142.64,142.59,23.2485]
[1728097544818,0.8501506,142.64,142.57,24.1394]
[1728097545136,0.8501506,142.64,142.57,17.5349]
[1728097545541,7.0125,142.61,142.55,23.2509]
[1728097545744,7.0126,142.6,142.56,30.0]
[1728097545944,7.0126,142.6,142.55,16.2359]
[1728097546137,7.0131,142.59,142.55,16.2359]
[1728097546435,7.0131,142.59,142.54,17.5387]
[1728097547815,7.0131,142.59,142.55,24.027864]
[1728097549246,7.0126,142.6,142.55,24.027864]
[1728097550742,21.75315162,142.62,142.55,24.027864]
[1728097550946,7.0135,142.59,142.55,24.027864]
[1728097551349,7.0137,142.58,142.55,23.902374]
[1728097551639,21.75315162,142.62,142.55,23.776884]
[1728097551640,7.0132,142.59,142.55,23.776884]
[1728097552962,7.0132,142.59,142.56,1.39548016]
[1728097554046,20.0,142.62,142.56,1.39548016]
[1728097554047,7.0126,142.6,142.57,23.776884]
[1728097554647,7.0126,142.6,142.56,23.776884]
[1728097554838,7.0126,142.6,142.56,24.027864]
[1728097555445,7.0131,142.59,142.55,23.776884]
[1728097557453,1.75326688,142.61,142.55,23.776884]
[1728097557655,7.0136,142.58,142.55,23.776884]
[1728097558064,20.0,142.62,142.55,23.776884]
[1728097558250,7.0131,142.59,142.55,23.776884]
[1728097560659,1.75329527,142.58,142.51,48.27178612]
[1728097560862,7.0136,142.58,142.53,7.016]
[1728097561067,27.0132,142.59,142.54,7.0154]
[1728097561270,7.0139,142.58,142.53,7.0159]
[1728097562263,7.0139,142.58,142.54,24.027864]
[1728097565749,17.5333,142.59,142.51,16.2359]
[1728097565953,17.5333,142.59,142.5,6.6045]
[1728097565954,7.016,142.54,142.5,20.0]
[1728097566450,7.0164,142.53,142.48,24.5638]
[1728097566749,1.75400166,142.56,142.49,30.0]
[1728097566954,7.0165,142.52,142.48,17.5457]
[1728097567668,7.0161,142.53,142.48,24.564]
[1728097568961,7.0161,142.53,142.49,23.902374]
[1728097569883,6.4357,142.55,142.45,32.04348612]
[1728097570052,7.0175,142.5,142.45,24.5696]
[1728097570563,7.018,142.49,142.44,7.0204]
[1728097570796,7.018,142.49,142.45,30.0]
[1728097570954,7.018,142.49,142.44,7.0204]
[1728097571152,20.0,142.54,142.45,14.49378612]
[1728097571349,7.0165,142.53,142.48,7.0184]
[1728097571551,7.0165,142.53,142.47,14.49378612]
[1728097571552,21.75415423,142.54,142.47,14.49378612]
[1728097571752,21.75415423,142.54,142.48,23.776884]
[1728097572476,21.75415423,142.54,142.48,0.12549]
[1728097573056,7.0165,142.52,142.48,0.12549]
[1728097574662,21.75415524,142.54,142.45,14.49378612]
[1728097574865,7.0176,142.5,142.44,20.0]
[1728097575052,6.4357,142.55,142.46,32.04228612]
[1728097575053,13.4512,142.55,142.46,32.04228612]
[1728097575262,7.0157,142.54,142.49,7.0177]
[1728097575457,6.4357,142.55,142.48,32.03908612]
[1728097575661,7.0149,142.56,142.5,17.5427]
[1728097575863,7.0149,142.56,142.51,7.0169]
[1728097576168,7.0149,142.56,142.52,23.776884]
[1728097576360,7.0149,142.56,142.51,7.0169]
[1728097576361,7.0151,142.55,142.51,23.776884]
[1728097576561,7.0151,142.55,142.51,30.793784]
[1728097577285,7.0146,142.56,142.51,30.793784]
[1728097578167,18.39555628,142.57,142.51,30.793784]
[1728097578478,7.0151,142.55,142.51,30.793784]
[1728097583977,7.0151,142.55,142.51,23.776884]
[1728097585999,21.75376577,142.59,142.52,7.26718]
[1728097586197,7.0136,142.58,142.53,32.18896616]
[1728097586790,7.0136,142.58,142.54,0.12549]
[1728097586973,7.0136,142.58,142.55,23.776884]
[1728097587771,7.0146,142.56,142.53,23.776884]
[1728097588089,7.0146,142.56,142.49,17.5446]
[1728097588090,1.75367178,142.55,142.48,14.49378612]
[1728097588279,7.0161,142.53,142.48,14.49378612]
[1728097588474,1.75406644,142.55,142.46,48.51688612]
[1728097588782,7.0174,142.51,142.46,48.51688612]
[1728097589282,7.0171,142.51,142.46,37.98788612]
[1728097590063,1.75415169,142.53,142.46,14.49378612]
[1728097590281,7.018,142.49,142.46,14.49378612]
[1728097590996,7.0176,142.5,142.46,14.49378612]
[1728097591165,7.0176,142.5,142.47,23.776884]
[1728097592972,1.75436969,142.53,142.45,17.5494]
[1728097593177,15.5755,142.51,142.43,20.0]
[1728097593373,7.0181,142.49,142.44,8.41912658]
[1728097593582,7.0181,142.49,142.43,41.51458612]
[1728097593893,7.0191,142.47,142.43,20.0]
[1728097594195,7.0181,142.49,142.44,1.39870994]
[1728097594369,28.6682,142.51,142.46,21.51308612]
[1728097594569,28.6682,142.51,142.47,1.39800743]
[1728097595377,22.5929,142.51,142.48,23.776884]
[1728097595577,22.5929,142.51,142.49,1.39788089]
[1728097595781,22.5929,142.51,142.47,23.776884]
[1728097597297,15.5755,142.51,142.47,23.776884]
[1728097597590,7.0175,142.5,142.48,1.3980327]
[1728097597890,7.0175,142.5,142.47,23.776884]
[1728097598894,7.0175,142.5,142.46,23.902374]
[1728097599875,15.5755,142.51,142.44,32.04418612]
[1728097600077,15.5755,142.51,142.42,21.51518612]
[1728097600078,7.0191,142.47,142.42,21.51518612]
[1728097601274,7.0195,142.46,142.42,14.49378612]
[1728097601481,7.0195,142.46,142.41,24.5763]
[1728097602283,7.0201,142.45,142.41,17.5545]
[1728097602683,6.5276,142.49,142.41,17.5545]
[1728097602877,7.0194,142.47,142.42,7.0214]
[1728097603785,7.0199,142.46,142.42,23.776884]
[1728097604185,7.0205,142.44,142.41,23.776884]
[1728097604386,7.0205,142.44,142.4,14.49378612]
[1728097604977,7.0205,142.44,142.4,21.51618612]
[1728097605175,7.0201,142.45,142.4,21.51618612]
[1728097605797,7.0201,142.45,142.41,24.027864]
[1728097606402,7.0176,142.5,142.46,23.776884]
[1728097606567,7.0181,142.49,142.45,23.776884]
[1728097609300,15.5755,142.51,142.45,23.776884]
[1728097609597,15.5755,142.51,142.43,20.0]
[1728097609598,7.019,142.47,142.43,20.0]
[1728097609804,7.0186,142.48,142.44,25.17607024]
[1728097610096,7.0186,142.48,142.44,23.776884]
[1728097610482,7.0186,142.48,142.38,14.49378612]
[1728097610483,26.5276,142.47,142.38,17.5582]
[1728097610684,7.0215,142.42,142.38,17.5582]
[1728097611071,18.3091352,142.46,142.34,31.11108612]
[1728097611273,18.3091352,142.46,142.35,17.5618]
[1728097611274,20.0,142.45,142.35,17.5618]
[1728097611494,1.75575449,142.44,142.35,17.5618]
[1728097611696,7.0235,142.38,142.33,7.0259]
[1728097611899,37.5511,142.45,142.34,1.40167502]
[1728097612101,7.0223,142.41,142.36,7.0243]
[1728097612503,7.0225,142.4,142.35,24.5863]
[1728097612895,20.0,142.45,142.36,14.49378612]
[1728097613201,20.0,142.45,142.35,17.5614]
[1728097613202,7.02,142.45,142.4,7.0224]
[1728097613795,7.02,142.45,142.41,23.776884]
[1728097614706,7.0205,142.44,142.4,24.027864]
[1728097615488,7.0205,142.44,142.4,23.776884]
[1728097617413,16.5538,142.46,142.4,23.776884]
[1728097617593,7.021,142.43,142.4,23.776884]
[1728097617792,7.021,142.43,142.39,23.776884]
[1728097619895,7.0215,142.42,142.38,23.902374]
[1728097620091,7.0215,142.42,142.38,23.776884]
[1728097620313,8.77753465,142.41,142.37,17.5587]
[1728097620518,7.022,142.41,142.37,17.5587]
[1728097621717,7.0215,142.42,142.38,23.902374]
[1728097621917,7.021,142.43,142.38,30.925674]
[1728097622098,16.5538,142.46,142.39,7.0229]
[1728097622498,7.0205,142.44,142.4,23.776884]
[1728097622900,7.02,142.45,142.4,30.799084]
[1728097625711,7.0205,142.44,142.4,23.776884]
[1728097625908,1.75525526,142.44,142.4,23.776884]
[1728097626216,1.75525526,142.44,142.37,15.3014]
[1728097626217,7.0215,142.42,142.37,7.0239]
[1728097626410,1.75525526,142.44,142.36,32.05438612]
[1728097626620,7.0223,142.41,142.36,39.07868612]
[1728097626813,7.0223,142.41,142.36,24.5849]
[1728097627008,1.75525526,142.44,142.36,17.5606]
[1728097627223,7.0237,142.38,142.33,17.5646]
[1728097627416,7.024,142.37,142.33,17.5646]
[1728097627617,7.0245,142.36,142.31,21.52058612]
[1728097627926,17.65405487,142.4,142.31,14.49378612]
[1728097628223,7.0239,142.37,142.32,7.0263]
[1728097628924,7.0244,142.36,142.31,21.52058612]
[1728097629097,1.75608826,142.39,142.3,17.568]
[1728097629098,21.75608826,142.39,142.3,17.568]
[1728097629301,7.0244,142.36,142.31,7.0268]
[1728097630126,7.024,142.37,142.32,7.0262]
[1728097630426,7.0256,142.34,142.3,17.568]
[1728097630842,7.0256,142.34,142.27,14.49378612]
[1728097630843,7.0261,142.33,142.27,32.06558612]
[1728097631012,1.75663767,142.33,142.27,17.5718]
[1728097632316,7.027,142.31,142.27,17.5718]
[1728097633014,7.0274,142.3,142.25,7.0297]
[1728097633230,7.0274,142.3,142.24,24.6056]
[1728097633532,7.0274,142.3,142.25,7.0294]
[1728097633725,1.75700948,142.32,142.24,17.5758]
[1728097633927,7.0285,142.28,142.24,17.5758]
[1728097634313,7.0279,142.29,142.24,17.5758]
[1728097634509,7.0273,142.31,142.26,7.0292]
[1728097635416,20.0,142.33,142.24,17.5758]
[1728097635417,1.75701153,142.3,142.24,17.5758]
[1728097635734,7.0279,142.29,142.24,24.6061]
[1728097635935,1.75724828,142.28,142.22,7.0308]
[1728097636237,19.32417567,142.32,142.23,20.0]
[1728097636425,7.0288,142.28,142.23,20.0]
[1728097636820,7.0291,142.27,142.22,7.0312]
[1728097637031,28.4835,142.28,142.23,7.0307]
[1728097637537,7.0289,142.27,142.22,24.6085]
[1728097637738,28.4836,142.28,142.23,7.0307]
[1728097638243,28.4836,142.28,142.24,23.776884]
[1728097638412,28.4836,142.28,142.23,23.776884]
[1728097638413,8.78614184,142.27,142.23,23.776884]
[1728097639038,1.75724184,142.27,142.23,23.776884]
[1728097640729,7.03,142.25,142.19,24.6141]
[1728097641942,7.03,142.25,142.2,7.0321]
[1728097642247,21.4552,142.28,142.24,7.0302]
[1728097642417,21.4552,142.28,142.23,7.0307]
[1728097642624,21.4552,142.28,142.24,24.027864]
[1728097642841,21.4552,142.28,142.24,31.057964]
[1728097644319,21.4552,142.28,142.24,24.027864]
[1728097644522,7.0274,142.3,142.26,23.776884]
[1728097644839,7.0275,142.3,142.26,23.776884]
[1728097645150,27.0269,142.31,142.26,30.806084]
[1728097645820,21.75698235,142.31,142.26,23.776884]
[1728097646026,7.0279,142.29,142.26,23.776884]
[1728097647341,8.78495039,142.29,142.24,7.0303]
[1728097647528,7.0284,142.28,142.24,7.0303]
[1728097647722,7.0289,142.27,142.22,7.0312]
[1728097650124,20.0,142.31,142.24,23.776884]
[1728097650329,7.0285,142.28,142.24,23.776884]
[1728097651345,7.0289,142.27,142.23,23.776884]
[1728097652548,20.0,142.31,142.19,14.49378612]
[1728097652734,7.0294,142.26,142.22,7.0312]
[1728097653634,7.0288,142.28,142.22,7.0312]
[1728097654232,1.75734842,142.27,142.23,23.776884]
[1728097654433,7.0289,142.27,142.23,23.776884]
[1728097655652,17.5691,142.3,142.16,15.9118]
[1728097655653,7.0318,142.21,142.16,22.9457]
[1728097655950,7.0318,142.21,142.17,7.0337]
[1728097656328,1.758081,142.2,142.15,17.5864]
[1728097656544,7.0323,142.2,142.15,24.6207]
[1728097656848,7.0323,142.2,142.16,7.0342]
[1728097657050,20.0,142.25,142.17,7.0336]
[1728097657652,1.75803699,142.24,142.17,7.0336]
[1728097658144,7.0314,142.22,142.18,23.776884]
[1728097658655,20.0,142.25,142.19,1.40643307]
[1728097658837,27.0303,142.25,142.18,0.25098]
[1728097659357,7.0304,142.24,142.2,23.776884]
[1728097661334,22.2335,142.26,142.19,17.5811]
[1728097661540,29.2629,142.26,142.22,7.0312]
[1728097661728,29.2629,142.26,142.21,7.0318]
[1728097661923,22.2335,142.26,142.2,23.902374]
[1728097662249,22.2335,142.3,142.22,23.902374]
[1728097662452,22.2335,142.3,142.23,14.49378612]
[1728097662939,22.2335,142.3,142.24,23.902374]
[1728097663137,29.261,142.3,142.25,8.43442797]
[1728097663552,22.2335,142.3,142.26,7.0292]
[1728097663855,7.0269,142.32,142.27,1.40433473]
[1728097664245,7.0269,142.31,142.27,1.40433473]
[1728097664770,7.0269,142.31,142.26,7.0292]
[1728097664970,1.75699434,142.3,142.23,43.902374]
[1728097665353,1.75699434,142.3,142.23,23.902374]
[1728097665563,20.0,142.32,142.23,23.902374]
[1728097665864,20.0,142.32,142.25,23.902374]